bitfinex-derivatives/quotes_BTCF0:USTF0_20250517
["timestamp","ask_amount","ask_price","bid_price","bid_amount"]
[1747463714694,0.64712218,103440.0,103430.0,0.9153798]
[1747463715002,0.73733125,103440.0,103430.0,0.9153798]
[1747463715509,0.73733125,103440.0,103430.0,0.7057398]
[1747463715808,0.81600822,103440.0,103430.0,0.7220783]
[1747463716110,0.84860822,103440.0,103430.0,0.7220783]
[1747463716804,0.84860822,103440.0,103430.0,0.9153798]
[1747463717400,0.78846884,103440.0,103430.0,0.9153798]
[1747463717702,0.78846884,103440.0,103430.0,0.86617724]
[1747463720896,0.78846884,103440.0,103430.0,0.89867724]
[1747463722205,0.42766884,103440.0,103430.0,0.93554664]
[1747463722402,0.78846884,103440.0,103430.0,0.93554664]
[1747463723404,0.69825977,103440.0,103430.0,0.93554664]
[1747463723707,0.81861685,103440.0,103430.0,0.93554664]
[1747463724306,0.81861685,103440.0,103430.0,0.74224514]
[1747463725110,0.81861685,103440.0,103430.0,0.53260514]
[1747463725304,0.81861685,103440.0,103430.0,0.74220514]
[1747463725606,0.81861685,103440.0,103430.0,0.74204514]
[1747463725607,0.85061685,103440.0,103430.0,0.74204514]
[1747463725807,0.92929382,103440.0,103430.0,0.32284514]
[1747463726008,0.92929382,103440.0,103430.0,0.29284514]
[1747463726810,0.92929382,103440.0,103430.0,0.32284514]
[1747463727107,0.85061685,103440.0,103430.0,0.32284514]
[1747463728007,0.73993988,103440.0,103430.0,0.51614664]
[1747463728510,0.37913988,103440.0,103430.0,0.51614664]
[1747463728910,0.31363988,103440.0,103430.0,0.95562361]
[1747463729308,0.28372438,103440.0,103430.0,0.87694664]
[1747463729513,0.34552438,103440.0,103430.0,0.87694664]
[1747463731408,0.78500135,103440.0,103430.0,0.32284514]
[1747463731706,0.81690135,103440.0,103430.0,0.71200514]
[1747463731911,0.89557832,103440.0,103430.0,0.26034514]
[1747463732112,0.92549382,103440.0,103430.0,0.08034514]
[1747463733415,0.92549382,103440.0,103430.0,0.0926783]
[1747463733617,0.92549382,103440.0,103430.0,0.1256783]
[1747463734608,0.80513674,103440.0,103430.0,0.1256783]
[1747463735304,0.76744175,103440.0,103430.0,0.1256783]
[1747463736322,0.8871007,103440.0,103430.0,0.0926783]
[1747463736620,0.76744175,103440.0,103430.0,0.0926783]
[1747463738420,0.76844175,103440.0,103430.0,0.0916783]
[1747463738620,0.76844175,103440.0,103430.0,0.0886783]
[1747463738823,0.76844175,103440.0,103430.0,0.0896783]
[1747463739613,0.8881007,103440.0,103430.0,0.0896783]
[1747463739818,0.76844175,103440.0,103430.0,0.0896783]
[1747463741523,0.8881007,103440.0,103430.0,0.0575783]
[1747463742523,0.9847807,103440.0,103430.0,0.0575783]
[1747463742724,1.1647807,103440.0,103430.0,0.0319727]
[1747463742923,0.9847807,103440.0,103430.0,0.0319727]
[1747463743121,1.1647807,103440.0,103430.0,0.0319727]
[1747463744419,1.1647807,103440.0,103430.0,0.0637727]
[1747463744621,1.1647807,103440.0,103430.0,0.0644]
[1747463744926,1.04712175,103440.0,103430.0,0.0644]
[1747463745127,0.86712175,103440.0,103430.0,0.0644]
[1747463745338,0.73854175,103440.0,103430.0,0.0644]
[1747463745621,0.1962828,103440.0,103430.0,0.4993015]
[1747463745926,0.1962828,103440.0,103430.0,0.7088215]
[1747463746125,0.1962828,103440.0,103430.0,0.8888215]
[1747463746511,0.5570828,103440.0,103430.0,0.8888215]
[1747463746720,0.1962828,103440.0,103430.0,0.8888215]
[1747463747323,0.5570828,103440.0,103430.0,0.8888215]
[1747463748124,0.82792487,103440.0,103430.0,0.8888215]
[1747463754330,0.46712487,103440.0,103430.0,0.8888215]
[1747463754629,0.82792487,103440.0,103430.0,0.8888215]
[1747463756027,0.46712487,103440.0,103430.0,1.2496215]
[1747463756531,0.46712487,103440.0,103430.0,1.36928045]
[1747463756722,0.46712487,103440.0,103430.0,1.00848045]
[1747463756922,0.46712487,103440.0,103430.0,1.36928045]
[1747463757233,0.46712487,103440.0,103430.0,1.32811068]
[1747463758320,0.46712517,103440.0,103430.0,1.32811068]
[1747463758627,0.28672996,103440.0,103430.0,1.32811068]
[1747463760235,0.28672996,103440.0,103430.0,1.45802443]
[1747463761032,0.28672996,103440.0,103430.0,1.09722443]
[1747463761335,0.28672996,103440.0,103430.0,1.45802443]
[1747463761719,0.25654829,103440.0,103430.0,1.45802443]
[1747463763041,0.06326519,103440.0,103430.0,1.45802443]
[1747463763236,0.25654829,103440.0,103430.0,1.45802443]
[1747463764427,0.25654829,103440.0,103430.0,1.45790443]
[1747463764631,0.25654829,103440.0,103430.0,1.45774443]
[1747463765237,0.25654829,103440.0,103430.0,0.96041525]
[1747463765427,0.25654829,103440.0,103430.0,1.37925525]
[1747463765628,0.32204829,103440.0,103430.0,1.37925525]
[1747463766137,0.27891057,103440.0,103430.0,1.37925525]
[1747463766339,0.27891057,103440.0,103430.0,1.45774443]
[1747463767129,0.27891057,103440.0,103430.0,1.09694443]
[1747463767330,0.27891057,103440.0,103430.0,1.01845525]
[1747463768037,0.27891057,103440.0,103430.0,1.02038883]
[1747463768536,0.27891057,103440.0,103430.0,0.81098883]
[1747463768734,0.27891057,103440.0,103430.0,1.02034883]
[1747463770143,0.27891057,103440.0,103430.0,0.61768733]
[1747463770353,0.36935743,103440.0,103430.0,1.02034903]
[1747463770548,0.4889713,103440.0,103430.0,0.40824733]
[1747463770744,0.5196713,103440.0,103430.0,1.02034903]
[1747463771148,0.5196713,103440.0,103430.0,0.84034903]
[1747463771549,0.5196713,103440.0,103430.0,0.71043528]
[1747463772446,0.40005743,103440.0,103430.0,0.71043528]
[1747463777049,0.40005743,103440.0,103430.0,0.89043528]
[1747463777658,0.37992996,103440.0,103430.0,0.89043528]
[1747463779355,0.49954383,103440.0,103430.0,0.89039528]
[1747463780256,0.49954383,103440.0,103430.0,1.02007572]
[1747463780756,0.37992996,103440.0,103430.0,1.02007572]
[1747463782946,0.37992996,103440.0,103430.0,0.82677402]
[1747463783150,0.37992996,103440.0,103430.0,1.02007572]
[1747463783357,0.41006488,103440.0,103430.0,0.40801402]
[1747463783649,0.41006488,103440.0,103430.0,1.02007572]
[1747463784557,0.52967875,103440.0,103430.0,1.02007572]
[1747463785562,0.41006488,103440.0,103430.0,1.02007572]
[1747463789359,0.48857584,103440.0,103430.0,1.02007572]
[1747463789762,0.41006488,103440.0,103430.0,1.02007572]
[1747463792765,0.48857584,103440.0,103430.0,0.82669402]
[1747463793167,0.84937584,103440.0,103430.0,0.82653402]
[1747463793366,0.84937584,103440.0,103430.0,0.79453402]
[1747463793970,0.84937584,103440.0,103430.0,0.37601402]
[1747463794270,0.84937584,103440.0,103430.0,0.82483402]
[1747463794870,0.9278868,103440.0,103430.0,0.58529402]
[1747463795171,0.9278868,103440.0,103430.0,0.16441402]
[1747463797275,0.80730502,103440.0,103430.0,0.16441402]
[1747463798274,0.44650502,103440.0,103430.0,0.19651402]
[1747463798467,0.80730502,103440.0,103430.0,0.19651402]
[1747463798671,0.80730502,103440.0,103430.0,0.03473358]
[1747463799674,0.6502831,103440.0,103430.0,0.03473358]
[1747463799868,0.80730502,103440.0,103430.0,0.03473358]
[1747463800976,0.44650502,103440.0,103430.0,0.03473358]
[1747463801177,0.80730502,103440.0,103430.0,0.03473358]
[1747463802072,0.80730502,103440.0,103430.0,0.06603358]
[1747463802979,0.80730502,103440.0,103430.0,0.10296418]
[1747463804380,0.95756531,103440.0,103430.0,0.10296418]
[1747463804880,0.95756531,103440.0,103430.0,0.03986418]
[1747463805271,0.96756531,103440.0,103430.0,0.03986418]
[1747463805974,1.43424531,103440.0,103430.0,8e-08]
[1747463806181,1.61424531,103440.0,103430.0,8e-08]
[1747463808084,1.17254339,103440.0,103430.0,8e-08]
[1747463808271,1.07105435,103440.0,103430.0,0.09130008]
[1747463808470,0.88105435,103440.0,103430.0,0.09130008]
[1747463809367,0.85035435,103440.0,103430.0,0.09130008]
[1747463811281,0.89148937,103440.0,103430.0,0.09130008]
[1747463814175,0.89148937,103440.0,103430.0,0.27130008]
[1747463815783,0.70634339,103440.0,103430.0,0.88292188]
[1747463815992,0.34554339,103440.0,103430.0,0.88292188]
[1747463817187,0.46608191,103440.0,103430.0,0.88292188]
[1747463819387,0.46608191,103440.0,103430.0,0.68962008]
[1747463820288,0.31582162,103440.0,103430.0,0.68962008]
[1747463822887,0.31582162,103440.0,103430.0,0.73885018]
[1747463823091,0.31582162,103440.0,103430.0,1.05179786]
[1747463823886,0.31582162,103440.0,103430.0,0.73885018]
[1747463825185,0.4354676,103440.0,103430.0,0.73885018]
[1747463825391,0.4676676,103440.0,103430.0,0.32053018]
[1747463825691,0.4676676,103440.0,103430.0,0.73877018]
[1747463825891,0.5001676,103440.0,103430.0,0.73877018]
[1747463827289,0.38052162,103440.0,103430.0,0.73877018]
[1747463829404,0.38052162,103440.0,103430.0,0.73873018]
[1747463829697,0.5001676,103440.0,103430.0,0.32053018]
[1747463829991,0.5001676,103440.0,103430.0,0.73873018]
[1747463831297,0.45903089,103440.0,103430.0,0.73873018]
[1747463832896,0.38052162,103440.0,103430.0,0.73873018]
[1747463833097,0.45903089,103440.0,103430.0,0.73873018]
[1747463835302,0.38052162,103440.0,103430.0,0.73873018]
[1747463835599,0.45903089,103440.0,103430.0,0.73873018]
[1747463836200,0.38052162,103440.0,103430.0,0.73873018]
[1747463836403,0.45903089,103440.0,103430.0,0.73873018]
[1747463841294,0.45903089,103440.0,103430.0,0.32053018]
[1747463841498,0.45903089,103440.0,103430.0,0.73865018]
[1747463842105,0.45903089,103440.0,103430.0,0.55865018]
[1747463845599,0.48993089,103440.0,103430.0,0.55865018]
[1747463854516,0.45903089,103440.0,103430.0,0.55865018]
[1747463855021,0.33849237,103440.0,103430.0,0.55865018]
[1747463856314,0.33849237,103440.0,103430.0,0.63918814]
[1747463857618,0.33849237,103440.0,103430.0,0.63910814]
[1747463858916,0.33849237,103440.0,103430.0,0.22106814]
[1747463859122,0.77780164,103440.0,103430.0,0.19066814]
[1747463859321,0.80930164,103440.0,103430.0,0.15986814]
[1747463860427,0.80930164,103440.0,103430.0,0.19096814]
[1747463862331,0.84955266,103440.0,103430.0,0.19096814]
[1747463862525,0.84955266,103440.0,103430.0,0.22396814]
[1747463862921,0.88125266,103440.0,103430.0,0.22396814]
[1747463863634,0.88125266,103440.0,103430.0,0.14347506]
[1747463864832,0.34554339,103440.0,103430.0,0.22198433]
[1747463865234,0.37724339,103440.0,103430.0,0.35235506]
[1747463865532,0.40844339,103440.0,103430.0,0.54565676]
[1747463867133,0.40844339,103440.0,103430.0,0.72565676]
[1747463867726,0.48695266,103440.0,103430.0,0.72565676]
[1747463868137,0.34554339,103440.0,103430.0,0.80416603]
[1747463868432,0.34554339,103440.0,103430.0,0.72565676]
[1747463868938,0.34554339,103440.0,103430.0,0.75489097]
[1747463869326,0.34554339,103440.0,103430.0,0.6763817]
[1747463870630,0.34554339,103440.0,103430.0,0.8853417]
[1747463871337,0.28584749,103440.0,103430.0,0.96385097]
[1747463873534,0.28584749,103440.0,103430.0,1.32465097]
[1747463874135,0.28584749,103440.0,103430.0,1.36989462]
[1747463874633,0.28584749,103440.0,103430.0,1.36985462]
[1747463876540,0.25562168,103440.0,103430.0,1.36985462]
[1747463877932,0.25562148,103440.0,103430.0,1.36985462]
[1747463879246,0.06233858,103440.0,103430.0,1.36985462]
[1747463879539,0.25562178,103440.0,103430.0,1.36985462]
[1747463881243,0.06233858,103440.0,103430.0,1.36985462]
[1747463881542,0.25562178,103440.0,103430.0,1.36985462]
[1747463881732,0.06233858,103440.0,103430.0,1.36985462]
[1747463882545,0.25562168,103440.0,103430.0,1.36985462]
[1747463884644,0.25562168,103440.0,103430.0,1.00905462]
[1747463884945,0.25562168,103440.0,103430.0,1.36985462]
[1747463885939,0.1952831,103440.0,103430.0,1.00905462]
[1747463886244,0.1952831,103440.0,103430.0,1.36985462]
[1747463886952,0.1952831,103440.0,103430.0,1.00905462]
[1747463887138,0.1952831,103440.0,103430.0,1.36985462]
[1747463889646,0.1952831,103440.0,103430.0,1.32461097]
[1747463890243,0.1952831,103440.0,103430.0,1.32449097]
[1747463892350,0.25562168,103440.0,103430.0,1.36973462]
[1747463892951,0.25562168,103440.0,103430.0,1.49955933]
[1747463894244,0.31572168,103440.0,103430.0,1.29083933]
[1747463894445,0.31572168,103440.0,103430.0,1.49951933]
[1747463894651,0.27258552,103440.0,103430.0,1.49951933]
[1747463895050,0.27258552,103440.0,103430.0,1.08187933]
[1747463895251,0.27258552,103440.0,103430.0,1.49931933]
[1747463895952,0.27258552,103440.0,103430.0,1.50125291]
[1747463896153,0.27258552,103440.0,103430.0,1.08381291]
[1747463896452,0.27258552,103440.0,103430.0,1.51327522]
[1747463897153,0.36314991,103440.0,103430.0,1.51327522]
[1747463897450,0.39414991,103440.0,103430.0,1.51327522]
[1747463898855,0.30304991,103440.0,103430.0,1.51327522]
[1747463899046,0.36674991,103440.0,103430.0,1.51327522]
[1747463899943,0.27618552,103440.0,103430.0,1.30459522]
[1747463900148,0.27618552,103440.0,103430.0,1.51323522]
[1747463901156,0.21248552,103440.0,103430.0,1.51323522]
[1747463901451,0.27408552,103440.0,103430.0,1.51323522]
[1747463901652,0.27408552,103440.0,103430.0,1.09583522]
[1747463901854,0.27408552,103440.0,103430.0,1.51323522]
[1747463902453,0.27408552,103440.0,103430.0,1.43472595]
[1747463902657,0.27408552,103440.0,103430.0,1.51323522]
[1747463902956,0.27408552,103440.0,103430.0,1.57365221]
[1747463903340,0.21248552,103440.0,103430.0,1.28650294]
[1747463903650,0.25362168,103440.0,103430.0,1.49514294]
[1747463903852,0.25362168,103440.0,103430.0,1.57365221]
[1747463904045,0.28512168,103440.0,103430.0,1.57365221]
[1747463905153,0.06033858,103440.0,103430.0,1.60691783]
[1747463905355,0.09056439,103450.0,103440.0,0.1932829]
[1747463905571,0.09056439,103450.0,103440.0,0.77610144]
[1747463905851,0.09056439,103450.0,103440.0,0.94602757]
[1747463906257,0.09056439,103450.0,103440.0,1.12602757]
[1747463906755,0.09156439,103450.0,103440.0,1.12602757]
[1747463907157,0.44413339,103460.0,103450.0,0.1932644]
[1747463907347,0.44413339,103460.0,103450.0,1.14473367]
[1747463907652,0.39582149,103460.0,103450.0,1.14473367]
[1747463907848,0.12276439,103460.0,103450.0,1.14473367]
[1747463908053,0.28481009,103460.0,103450.0,1.14473367]
[1747463908453,0.28481009,103460.0,103450.0,1.14573367]
[1747463908851,0.28481009,103460.0,103450.0,1.14773367]
[1747463909053,0.1942457,103460.0,103450.0,1.19289202]
[1747463909261,0.001,103460.0,103450.0,1.19289202]
[1747463910857,0.001,103460.0,103450.0,1.32263822]
[1747463912962,0.194246,103460.0,103450.0,1.32263822]
[1747463913163,0.225046,103460.0,103450.0,1.32263822]
[1747463913466,0.257946,103460.0,103450.0,1.32263822]
[1747463915562,0.257946,103460.0,103450.0,1.24197362]
[1747463915864,0.0647,103460.0,103450.0,1.24197362]
[1747463917265,0.0647,103460.0,103450.0,1.19681527]
[1747463918763,0.2579461,103460.0,103450.0,0.700946]
[1747463918962,0.33645537,103460.0,103450.0,0.845406]
[1747463919159,0.62586464,103460.0,103450.0,0.0827816]
[1747463919458,0.90815537,103460.0,103450.0,0.0520816]
[1747463919658,0.90815537,103460.0,103450.0,0.48149535]
[1747463921465,0.99871976,103460.0,103450.0,0.48149535]
[1747463924771,0.99871976,103460.0,103450.0,0.51379535]
[1747463925154,0.99871976,103460.0,103450.0,0.70706015]
[1747463925360,0.63791976,103460.0,103450.0,0.70706015]
[1747463925570,0.55941049,103460.0,103450.0,1.17656942]
[1747463925756,0.55941049,103460.0,103450.0,1.11515407]
[1747463926172,0.37941049,103460.0,103450.0,1.11515407]
[1747463926365,0.37941049,103460.0,103450.0,1.0366448]
[1747463931173,0.37941049,103460.0,103450.0,1.08574145]
[1747463931373,0.37941049,103460.0,103450.0,1.11684145]
[1747463933681,0.34851049,103460.0,103450.0,1.11684145]
[1747463934875,0.28481049,103460.0,103450.0,1.11684145]
[1747463935066,0.31811049,103460.0,103450.0,1.19535072]
[1747463935776,0.34891049,103460.0,103450.0,1.19535072]
[1747463935980,0.34891049,103460.0,103450.0,0.78545407]
[1747463936171,0.34891049,103460.0,103450.0,1.14625407]
[1747463936678,0.34891049,103460.0,103450.0,1.0677448]
[1747463937369,0.40919662,103460.0,103450.0,1.0677448]
[1747463939581,0.40919662,103460.0,103450.0,1.19754005]
[1747463940681,0.36606604,103460.0,103450.0,1.19754005]
[1747463942582,0.36606604,103460.0,103450.0,1.27604932]
[1747463944285,0.33276604,103460.0,103450.0,1.27604932]
[1747463944980,0.30196604,103460.0,103450.0,1.27604932]
[1747463945181,0.30196604,103460.0,103450.0,1.45604932]
[1747463946089,0.30196604,103460.0,103450.0,1.27604932]
[1747463947780,0.21140165,103460.0,103450.0,1.32120767]
[1747463948376,0.06028613,103460.0,103450.0,1.32120767]
[1747463948589,0.25353293,103460.0,103450.0,1.32120767]
[1747463949480,0.25353293,103460.0,103450.0,0.96040767]
[1747463949679,0.25353293,103460.0,103450.0,1.32120767]
[1747463950485,0.06028613,103460.0,103450.0,1.32120767]
[1747463950687,0.25353293,103460.0,103450.0,1.32120767]
[1747463950889,0.06028613,103460.0,103450.0,1.32120767]
[1747463951189,0.25353293,103460.0,103450.0,1.32120767]
[1747463952590,0.06028613,103460.0,103450.0,1.25979232]
[1747463953185,0.06028613,103460.0,103450.0,1.43979232]
[1747463953490,0.06028613,103460.0,103450.0,1.53979232]
[1747463955189,0.06028613,103460.0,103450.0,1.35979232]
[1747463955792,0.06028613,103460.0,103450.0,1.42020931]
[1747463956787,0.25353303,103460.0,103450.0,1.42020931]
[1747463956994,0.06028613,103460.0,103450.0,1.42020931]
[1747463960699,0.06028613,103460.0,103450.0,1.4594367]
[1747463960700,0.25353303,103460.0,103450.0,1.4594367]
[1747463961496,0.25353303,103460.0,103450.0,1.52091319]
[1747463962199,0.06028613,103460.0,103450.0,1.52091319]
[1747463962694,0.25353303,103460.0,103450.0,1.31239319]
[1747463962891,0.25353303,103460.0,103450.0,1.52075319]
[1747463966699,0.28523303,103460.0,103450.0,1.53279287]
[1747463968200,0.28523303,103460.0,103450.0,1.32443287]
[1747463968400,0.28523303,103460.0,103450.0,1.53275287]
[1747463968599,0.31813303,103460.0,103450.0,1.11587287]
[1747463968800,0.31813303,103460.0,103450.0,1.43259287]
[1747463972002,0.12488613,103460.0,103450.0,1.53259287]
[1747463972900,0.12488613,103460.0,103450.0,1.53247287]
[1747463974200,0.31813303,103460.0,103450.0,1.1456436]
[1747463974405,0.35123303,103460.0,103450.0,0.7138988]
[1747463974701,0.4297423,103460.0,103450.0,0.96659654]
[1747463974902,0.35123303,103460.0,103450.0,1.38315654]
[1747463975108,0.53123303,103460.0,103450.0,1.38315654]
[1747463975498,0.49426721,103460.0,103450.0,1.38315664]
[1747463975699,0.49426721,103460.0,103450.0,1.34392925]
[1747463977403,0.56151129,103460.0,103450.0,1.29388709]
[1747463977705,0.56151129,103460.0,103450.0,1.12485747]
[1747463977906,0.56151129,103460.0,103450.0,1.08560709]
[1747463978207,0.56151129,103460.0,103450.0,1.29388709]
[1747463979009,0.51838152,103460.0,103450.0,1.29388709]
[1747463981915,0.51838152,103460.0,103450.0,1.28189779]
[1747463982410,0.54848152,103460.0,103450.0,1.28189779]
[1747463983712,0.54848152,103460.0,103450.0,1.31279779]
[1747463983913,0.54848152,103460.0,103450.0,1.39130706]
[1747463984115,0.54848152,103460.0,103450.0,1.34579779]
[1747463984414,0.54848152,103460.0,103450.0,1.42430706]
[1747463987017,0.54848152,103460.0,103450.0,1.34579779]
[1747463987218,0.54848152,103460.0,103450.0,1.42430706]
[1747463987418,0.54848152,103460.0,103450.0,1.06350706]
[1747463987612,0.54848152,103460.0,103450.0,1.42430706]
[1747463987912,0.54848152,103460.0,103450.0,1.46356691]
[1747463989810,0.54848152,103460.0,103450.0,1.10276691]
[1747463990011,0.54848152,103460.0,103450.0,1.46356691]
[1747463991818,0.54848152,103460.0,103450.0,1.47555621]
[1747463996539,0.54848152,103460.0,103450.0,1.11475621]
[1747463996930,0.54848152,103460.0,103450.0,1.47555621]
[1747463996931,0.27056439,103460.0,103450.0,1.47555621]
[1747463997130,0.28381129,103460.0,103450.0,1.47555621]
[1747463998930,0.28381129,103460.0,103450.0,1.26727621]
[1747463999133,0.49401129,103460.0,103450.0,1.20370134]
[1747463999330,0.60482056,103460.0,103450.0,0.74796149]
[1747463999530,0.63702056,103460.0,103450.0,0.74796149]
[1747463999731,0.63702056,103460.0,103450.0,1.35770699]
[1747463999934,0.63702056,103460.0,103450.0,0.94122699]
[1747464000235,0.55851129,103460.0,103450.0,1.35770699]
[1747464001740,0.55851129,103460.0,103450.0,1.26503444]
[1747464002339,0.55851129,103460.0,103450.0,1.20461745]
[1747464005045,0.55851129,103460.0,103450.0,0.99641755]
[1747464005342,0.55851129,103460.0,103450.0,1.20461755]
[1747464005546,0.55851129,103460.0,103450.0,1.01135195]
[1747464005736,0.55851129,103460.0,103450.0,1.20461755]
[1747464006439,1.07632983,103460.0,103450.0,0.6417246]
[1747464006736,0.99782056,103460.0,103450.0,0.6417246]
[1747464007140,0.99782056,103460.0,103450.0,0.2253646]
[1747464007333,0.99782056,103460.0,103450.0,0.6416846]
[1747464007535,1.07632983,103460.0,103450.0,0.1944646]
[1747464007734,1.07632983,103460.0,103450.0,0.4026646]
[1747464007936,1.07632983,103460.0,103450.0,0.1944646]
[1747464008743,0.98576544,103460.0,103450.0,0.15397452]
[1747464008938,1.10655695,103460.0,103450.0,0.10881617]
[1747464009843,1.20321695,103460.0,103450.0,0.07651617]
[1747464010247,1.20321695,103460.0,103450.0,0.10681617]
[1747464010438,1.20321695,103460.0,103450.0,0.0333]
[1747464011841,1.08242544,103460.0,103450.0,0.0333]
[1747464016049,1.08242544,103460.0,103450.0,0.07017208]
[1747464016050,1.33242544,103460.0,103450.0,0.07017208]
[1747464016251,1.74093471,103460.0,103450.0,8e-08]
[1747464018255,1.74193471,103460.0,103450.0,8e-08]
[1747464018445,1.58491617,103460.0,103450.0,8e-08]
[1747464022943,1.23825617,103460.0,103450.0,8e-08]
[1747464023148,0.91825617,103460.0,103450.0,8e-08]
[1747464023352,0.91825617,103460.0,103450.0,0.03230008]
[1747464024554,0.99676544,103460.0,103450.0,0.03230008]
[1747464027858,0.60376544,103460.0,103450.0,0.03230008]
[1747464028047,1.35546544,103460.0,103450.0,0.09600008]
[1747464030257,1.1984469,103460.0,103450.0,0.09600008]
[1747464030462,1.35546544,103460.0,103450.0,0.09600008]
[1747464031865,1.32536544,103460.0,103450.0,0.09600008]
[1747464033566,1.35796544,103460.0,103450.0,0.09600008]
[1747464034467,1.1360469,103460.0,103450.0,0.28926568]
[1747464034666,1.1260469,103460.0,103450.0,0.28926568]
[1747464034859,0.81355617,103460.0,103450.0,0.49734568]
[1747464035856,0.93388935,103460.0,103450.0,0.49734568]
[1747464039263,0.75388935,103460.0,103450.0,0.49734568]
[1747464042060,0.93388935,103460.0,103450.0,0.49734568]
[1747464042266,0.57308935,103460.0,103450.0,0.49734568]
[1747464042469,0.93388935,103460.0,103450.0,0.49734568]
[1747464043070,0.75388935,103460.0,103450.0,0.49734568]
[1747464045169,0.39308935,103460.0,103450.0,0.49734568]
[1747464045372,0.75388935,103460.0,103450.0,0.49734568]
[1747464047868,0.75388935,103460.0,103450.0,0.28926568]
[1747464048065,0.67538008,103460.0,103450.0,0.49726568]
[1747464048261,0.75388935,103460.0,103450.0,0.49726568]
[1747464048972,0.67538008,103460.0,103450.0,0.49726568]
[1747464049160,0.75388935,103460.0,103450.0,0.49726568]
[1747464049862,0.39308935,103460.0,103450.0,0.49726568]
[1747464050063,0.75388935,103460.0,103450.0,0.49726568]
[1747464050269,0.93388935,103460.0,103450.0,0.49726568]
[1747464050471,0.96518935,103460.0,103450.0,0.49726568]
[1747464050669,0.60438935,103460.0,103450.0,0.49726568]
[1747464050970,0.96518935,103460.0,103450.0,0.49726568]
[1747464051878,0.60438935,103460.0,103450.0,0.49726568]
[1747464052170,0.96518935,103460.0,103450.0,0.49726568]
[1747464053272,0.88668008,103460.0,103450.0,0.49726568]
[1747464053466,0.99828935,103460.0,103450.0,0.49726568]
[1747464053770,0.91978008,103460.0,103450.0,0.49726568]
[1747464053970,0.88668008,103460.0,103450.0,0.49726568]
[1747464054170,0.85538008,103460.0,103450.0,0.49726568]
[1747464054669,0.93388935,103460.0,103450.0,0.49726568]
[1747464054967,0.99778935,103460.0,103450.0,0.49726568]
[1747464055169,0.81778935,103460.0,103450.0,0.49726568]
[1747464056773,0.45698935,103460.0,103450.0,0.49726568]
[1747464057073,0.81778935,103460.0,103450.0,0.49726568]
[1747464059772,0.81778935,103460.0,103450.0,0.53761834]
[1747464060774,0.81778935,103460.0,103450.0,0.34435274]
[1747464061785,0.69745617,103460.0,103450.0,0.53761834]
[1747464063078,0.69745617,103460.0,103450.0,0.74565834]
[1747464063979,0.69745617,103460.0,103450.0,0.34439274]
[1747464064180,0.87745617,103460.0,103450.0,0.55227274]
[1747464065180,0.72825617,103460.0,103450.0,0.55227274]
[1747464065371,0.72825617,103460.0,103450.0,0.13635274]
[1747464065570,0.72825617,103460.0,103450.0,0.55211274]
[1747464067583,0.72825617,103460.0,103450.0,0.13635274]
[1747464067774,0.80676544,103460.0,103450.0,0.28053274]
[1747464068080,0.98676544,103460.0,103450.0,0.28053274]
[1747464068270,0.98676544,103460.0,103450.0,0.07265274]
[1747464068466,1.01676544,103460.0,103450.0,0.07265274]
[1747464068773,1.01676544,103460.0,103450.0,0.03230008]
[1747464071384,0.8597469,103460.0,103450.0,0.03230008]
[1747464071573,0.93825617,103460.0,103450.0,0.03230008]
[1747464071974,0.90825617,103460.0,103450.0,0.09500008]
[1747464073979,0.7658469,103460.0,103450.0,0.28826568]
[1747464074183,0.5858469,103460.0,103450.0,0.36677495]
[1747464074387,0.5858469,103460.0,103450.0,0.28826568]
[1747464075484,0.66435617,103460.0,103450.0,0.28826568]
[1747464075974,0.63355617,103460.0,103450.0,0.28826568]
[1747464076177,0.75427044,103460.0,103450.0,0.28826568]
[1747464076387,0.67576117,103460.0,103450.0,0.28826568]
[1747464077386,0.67576117,103460.0,103450.0,0.09500008]
[1747464077685,0.70706117,103460.0,103450.0,0.09500008]
[1747464078786,0.34626117,103460.0,103450.0,0.09500008]
[1747464079190,0.34626117,103460.0,103450.0,0.28826568]
[1747464079489,0.2255469,103460.0,103450.0,0.28826568]
[1747464079686,0.1942469,103460.0,103450.0,0.72757495]
[1747464080287,0.1942469,103460.0,103450.0,0.90757495]
[1747464081090,0.1942469,103460.0,103450.0,0.72757495]
[1747464082089,0.1942469,103460.0,103450.0,0.90757495]
[1747464082276,0.3450618,103460.0,103450.0,0.9527333]
[1747464084082,0.3450618,103460.0,103450.0,0.7727333]
[1747464085190,0.3450618,103460.0,103450.0,0.9527333]
[1747464085889,0.25457286,103460.0,103450.0,0.90757495]
[1747464086192,0.25457286,103460.0,103450.0,0.72757495]
[1747464087783,0.25457286,103460.0,103450.0,0.77673772]
[1747464088492,0.25457286,103460.0,103450.0,0.41593772]
[1747464088692,0.25457286,103460.0,103450.0,0.77673772]
[1747464091195,0.25457286,103460.0,103450.0,0.41593772]
[1747464091397,0.25457286,103460.0,103450.0,0.77673772]
[1747464092298,0.25457286,103460.0,103450.0,0.72757495]
[1747464094399,0.25457286,103460.0,103450.0,0.36677495]
[1747464094592,0.25457286,103460.0,103450.0,0.72757495]
[1747464094989,0.25457286,103460.0,103450.0,0.36677495]
[1747464095195,0.25457286,103460.0,103450.0,0.72757495]
[1747464097498,0.25457286,103460.0,103450.0,0.77673772]
[1747464101109,0.25457286,103460.0,103450.0,0.98441772]
[1747464102696,0.3450618,103460.0,103450.0,0.98441772]
[1747464103599,0.3450618,103460.0,103450.0,0.90590845]
[1747464103813,0.3450618,103460.0,103450.0,0.98441772]
[1747464104102,0.3450618,103460.0,103450.0,0.62361772]
[1747464104288,0.3450618,103460.0,103450.0,0.98437772]
[1747464106306,0.25457286,103460.0,103450.0,1.10922892]
[1747464108100,0.28527286,103460.0,103450.0,1.10922892]
[1747464108301,0.31537286,103460.0,103450.0,1.10922892]
[1747464109800,0.25457286,103460.0,103450.0,1.10922892]
[1747464111011,0.25457286,103460.0,103450.0,0.9803733]
[1747464112616,0.25457286,103460.0,103450.0,1.04079029]
[1747464113617,0.06132596,103460.0,103450.0,1.21929956]
[1747464113809,0.06132596,103460.0,103450.0,1.14079029]
[1747464114214,0.06132596,103460.0,103450.0,1.35999493]
[1747464115212,0.06132596,103460.0,103450.0,1.17999493]
[1747464115912,0.001,103460.0,103450.0,1.16495183]
[1747464116115,0.001,103460.0,103450.0,1.2264053]
[1747464116318,0.001,103460.0,103450.0,0.8656053]
[1747464116617,0.001,103460.0,103450.0,1.5872053]
[1747464117720,0.001,103460.0,103450.0,1.66571457]
[1747464118218,0.001,103460.0,103450.0,1.5872053]
[1747464119818,0.001,103460.0,103450.0,0.8656053]
[1747464120012,0.001,103460.0,103450.0,1.5872053]
[1747464121322,0.001,103460.0,103450.0,1.65406918]
[1747464122414,0.001,103460.0,103450.0,1.7142359]
[1747464124121,0.001,103460.0,103450.0,1.63572663]
[1747464124321,0.001,103460.0,103450.0,1.7142359]
[1747464125521,0.001,103460.0,103450.0,1.65278243]
[1747464127418,0.2260285,103470.0,103460.0,0.1932471]
[1747464127626,0.2260285,103470.0,103460.0,0.93483637]
[1747464127824,0.0328,103470.0,103460.0,1.01334564]
[1747464128032,0.5535589,103480.0,103470.0,0.1932284]
[1747464128321,0.5535589,103480.0,103470.0,0.93481767]